[Event "December 5 Early 2023"]
[Site "https://www.chess.com"]
[Date "2023.12.05"]
[Round "2"]
[White "Villabrille, Roberto"]
[Black "Prohaszka, Peter"]
[Result "0-1"]
[Board "114"]
[TimeControl "180+1"]
[WhiteFideId "103942"]
[BlackFideId "726265"]
[WhiteElo "1756"]
[BlackElo "2654"]
[WhiteTeam "ARG"]
[BlackTeam "HUN"]
[WhiteClock "0:00:26"]
[BlackClock "0:00:19"]

1. d4 {[%clk 0:03:00]}  Nf6 {[%clk 0:02:51]} 2. Nf3 {[%clk 0:03:01]}  g6 {[%clk 0:02:51]} 3. Bf4 {[%clk 0:03:00]}  Bg7 {[%clk 0:02:51]} 4. e3 {[%clk 0:02:59]}  b6 {[%clk 0:02:51]} 5. c4 {[%clk 0:02:58]}  Bb7 {[%clk 0:02:51]} 6. Nc3 {[%clk 0:02:58]}  Ne4 {[%clk 0:02:45]} 7. Nxe4 {[%clk 0:02:57]}  Bxe4 {[%clk 0:02:46]} 8. Bd3 {[%clk 0:02:57]}  Bxd3 {[%clk 0:02:45]} 9. Qxd3 {[%clk 0:02:56]}  O-O {[%clk 0:02:43]} 10. h3 {[%clk 0:02:55]}  d6 {[%clk 0:02:42]} 11. O-O {[%clk 0:02:52]}  Nd7 {[%clk 0:02:42]} 12. Bg5 {[%clk 0:02:50]}  h6 {[%clk 0:02:38]} 13. Bh4 {[%clk 0:02:49]}  f5 {[%clk 0:02:32]} 14. Bg3 {[%clk 0:02:44]}  Kh7 {[%clk 0:02:05]} 15. Rfd1 {[%clk 0:02:39]}  Qe8 {[%clk 0:01:54]} 16. b3 {[%clk 0:02:34]}  Rf7 {[%clk 0:01:49]} 17. Rac1 {[%clk 0:02:29]}  Nf6 {[%clk 0:01:41]} 18. c5 {[%clk 0:02:21]}  bxc5 {[%clk 0:01:36]} 19. dxc5 {[%clk 0:02:20]}  Ne4 {[%clk 0:01:37]} 20. cxd6 {[%clk 0:02:14]}  cxd6 {[%clk 0:01:25]} 21. Nd4 {[%clk 0:02:06]}  Nxg3 {[%clk 0:01:23]} 22. fxg3 {[%clk 0:02:02]}  Qd7 {[%clk 0:01:03]} 23. Qc4 {[%clk 0:01:52]}  d5 {[%clk 0:00:59]} 24. Qc6 {[%clk 0:01:47]}  Rd8 {[%clk 0:00:57]} 25. Ne6 {[%clk 0:01:34]}  Rf6 {[%clk 0:00:40]} 26. Qxd7 {[%clk 0:01:26]}  Rxd7 {[%clk 0:00:40]} 27. Rc6 {[%clk 0:01:18]}  h5 {[%clk 0:00:39]} 28. h4 {[%clk 0:01:11]}  Bh6 {[%clk 0:00:39]} 29. Rd3 {[%clk 0:00:55]}  Kg8 {[%clk 0:00:39]} 30. Kf2 {[%clk 0:00:51]}  Kf7 {[%clk 0:00:37]} 31. Nd4 {[%clk 0:00:46]}  e5 {[%clk 0:00:35]} 32. Rxf6+ {[%clk 0:00:43]}  Kxf6 {[%clk 0:00:36]} 33. Ne2 {[%clk 0:00:36]}  Ke6 {[%clk 0:00:35]} 34. Rc3 {[%clk 0:00:32]}  a5 {[%clk 0:00:29]} 35. Rc6+ {[%clk 0:00:31]}  Rd6 {[%clk 0:00:28]} 36. Rxd6+ {[%clk 0:00:31]}  Kxd6 {[%clk 0:00:29]} 37. Nc3 {[%clk 0:00:28]}  Kc5 {[%clk 0:00:30]} 38. Kf3 {[%clk 0:00:26]}  Bg7 {[%clk 0:00:21]} 39. Na4+ {[%clk 0:00:22]}  Kb5 {[%clk 0:00:18]} 40. Nc3+ {[%clk 0:00:22]}  Kc5 {[%clk 0:00:17]} 41. Na4+ {[%clk 0:00:22]}  Kc6 {[%clk 0:00:18]} 42. Nc3 {[%clk 0:00:21]}  e4+ {[%clk 0:00:18]} 43. Kf4 {[%clk 0:00:21]}  Bxc3 {[%clk 0:00:18]} 44. Kg5 {[%clk 0:00:22]}  d4 {[%clk 0:00:18]} 45. Kxg6 {[%clk 0:00:23]}  dxe3 {[%clk 0:00:18]} 46. Kxf5 {[%clk 0:00:24]}  e2 {[%clk 0:00:19]} 47. Kxe4 {[%clk 0:00:24]}  e1=Q+ {[%clk 0:00:20]} 48. Kf4 {[%clk 0:00:25]}  Qf2+ {[%clk 0:00:20]} 49. Kg5 {[%clk 0:00:26]}  Qxg2 {[%clk 0:00:20]} 50. Kxh5 {[%clk 0:00:27]}  Qxg3 {[%clk 0:00:20]} 51. b4 {[%clk 0:00:25]}  axb4 {[%clk 0:00:20]} 52. a3 {[%clk 0:00:25]}  b3 {[%clk 0:00:20]} 53. a4 {[%clk 0:00:24]}  b2 {[%clk 0:00:21]} 54. a5 {[%clk 0:00:25]}  b1=B {[%clk 0:00:19]} 55. a6 {[%clk 0:00:26]}  Qg6# {[%clk 0:00:19]} 0-1

[Event "December 5 Early 2023"]
[Site "https://www.chess.com"]
[Date "2023.12.05"]
[Round "2"]
[White "Ghosh, Chanchal Kumer"]
[Black "Xiong, Jeffery"]
[Result "0-1"]
[Board "115"]
[TimeControl "180+1"]
[WhiteFideId "10201858"]
[BlackFideId "2047640"]
[WhiteElo "2070"]
[BlackElo "3009"]
[WhiteTeam "BAN"]
[BlackTeam "USA"]
[WhiteClock "0:00:00"]
[BlackClock "0:00:56"]

1. e4 {[%clk 0:03:00]}  c5 {[%clk 0:02:59]} 2. Nf3 {[%clk 0:03:01]}  d6 {[%clk 0:03:00]} 3. d4 {[%clk 0:03:01]}  cxd4 {[%clk 0:03:01]} 4. Nxd4 {[%clk 0:03:01]}  Nf6 {[%clk 0:03:02]} 5. Nc3 {[%clk 0:03:02]}  a6 {[%clk 0:03:02]} 6. Be2 {[%clk 0:03:02]}  e5 {[%clk 0:03:03]} 7. Nb3 {[%clk 0:03:01]}  Be7 {[%clk 0:03:03]} 8. Be3 {[%clk 0:03:02]}  Be6 {[%clk 0:03:03]} 9. O-O {[%clk 0:03:02]}  O-O {[%clk 0:03:03]} 10. f4 {[%clk 0:03:02]}  exf4 {[%clk 0:03:04]} 11. Bxf4 {[%clk 0:03:01]}  Nc6 {[%clk 0:03:05]} 12. Bf3 {[%clk 0:02:58]}  Ne5 {[%clk 0:03:04]} 13. Nd5 {[%clk 0:02:56]}  Bxd5 {[%clk 0:03:00]} 14. exd5 {[%clk 0:02:55]}  Nfd7 {[%clk 0:03:01]} 15. Kh1 {[%clk 0:02:48]}  Bg5 {[%clk 0:03:00]} 16. Bg3 {[%clk 0:02:45]}  Rc8 {[%clk 0:03:00]} 17. Nd4 {[%clk 0:02:42]}  g6 {[%clk 0:03:00]} 18. b3 {[%clk 0:02:40]}  Bh4 {[%clk 0:02:36]} 19. Bf4 {[%clk 0:02:35]}  Bg5 {[%clk 0:02:36]} 20. Bg3 {[%clk 0:02:35]}  Re8 {[%clk 0:02:21]} 21. c4 {[%clk 0:02:33]}  Qa5 {[%clk 0:02:21]} 22. Be1 {[%clk 0:02:20]}  Qc7 {[%clk 0:02:16]} 23. Bg3 {[%clk 0:02:16]}  Re7 {[%clk 0:02:16]} 24. h3 {[%clk 0:02:06]}  Rce8 {[%clk 0:02:16]} 25. a4 {[%clk 0:01:48]}  Nc5 {[%clk 0:02:15]} 26. Be2 {[%clk 0:01:37]}  Ne4 {[%clk 0:02:13]} 27. Bh2 {[%clk 0:01:30]}  Be3 {[%clk 0:02:10]} 28. Bf3 {[%clk 0:00:21]}  Nc3 {[%clk 0:02:07]} 29. Qc2 {[%clk 0:00:14]}  Bxd4 {[%clk 0:02:07]} 30. Rae1 {[%clk 0:00:14]}  Nxf3 {[%clk 0:02:07]} 31. Rxe7 {[%clk 0:00:14]}  Qxe7 {[%clk 0:02:07]} 32. gxf3 {[%clk 0:00:14]}  Qe2 {[%clk 0:02:07]} 33. Qxe2 {[%clk 0:00:13]}  Rxe2 {[%clk 0:02:07]} 34. Bxd6 {[%clk 0:00:13]}  f6 {[%clk 0:01:55]} 35. Bc7 {[%clk 0:00:13]}  Kf7 {[%clk 0:01:56]} 36. b4 {[%clk 0:00:10]}  b5 {[%clk 0:01:47]} 37. axb5 {[%clk 0:00:10]}  axb5 {[%clk 0:01:48]} 38. d6 {[%clk 0:00:08]}  Ke6 {[%clk 0:01:49]} 39. c5 {[%clk 0:00:07]}  Kd7 {[%clk 0:01:50]} 40. Ba5 {[%clk 0:00:07]}  Nd5 {[%clk 0:01:46]} 41. Rd1 {[%clk 0:00:03]}  Bxc5 {[%clk 0:00:55]} 42. bxc5 {[%clk 0:00:02]}  Re5 {[%clk 0:00:56]} 43. Rc1 {[%clk 0:00:00]}  Kc6 {[%clk 0:00:56]} 0-1

[Event "December 5 Early 2023"]
[Site "https://www.chess.com"]
[Date "2023.12.05"]
[Round "2"]
[White "Senft, Sean"]
[Black "Movahed, Sina"]
[Result "0-1"]
[Board "117"]
[TimeControl "180+1"]
[WhiteFideId "2044960"]
[BlackFideId "42520835"]
[WhiteElo "2510"]
[BlackElo "2916"]
[WhiteTeam "USA"]
[BlackTeam "IRI"]
[WhiteClock "0:00:45"]
[BlackClock "0:01:46"]

1. d4 {[%clk 0:02:52]}  Nf6 {[%clk 0:02:59]} 2. c4 {[%clk 0:02:52]}  e6 {[%clk 0:02:59]} 3. Nc3 {[%clk 0:02:52]}  Bb4 {[%clk 0:02:56]} 4. Nf3 {[%clk 0:02:52]}  O-O {[%clk 0:02:53]} 5. Bg5 {[%clk 0:02:53]}  c5 {[%clk 0:02:46]} 6. e3 {[%clk 0:02:52]}  cxd4 {[%clk 0:02:46]} 7. exd4 {[%clk 0:02:51]}  h6 {[%clk 0:02:46]} 8. Bh4 {[%clk 0:02:51]}  b6 {[%clk 0:02:45]} 9. Bd3 {[%clk 0:02:51]}  Bb7 {[%clk 0:02:45]} 10. O-O {[%clk 0:02:51]}  Be7 {[%clk 0:02:40]} 11. Qc2 {[%clk 0:02:47]}  Nc6 {[%clk 0:02:36]} 12. Ne4 {[%clk 0:02:44]}  Nb4 {[%clk 0:02:31]} 13. Nxf6+ {[%clk 0:02:41]}  Bxf6 {[%clk 0:02:32]} 14. Bxf6 {[%clk 0:02:39]}  Qxf6 {[%clk 0:02:32]} 15. Qc3 {[%clk 0:02:27]}  Bxf3 {[%clk 0:02:33]} 16. gxf3 {[%clk 0:02:23]}  Nc6 {[%clk 0:02:26]} 17. Be4 {[%clk 0:02:20]}  Nxd4 {[%clk 0:02:24]} 18. Rfe1 {[%clk 0:01:23]}  d5 {[%clk 0:02:23]} 19. cxd5 {[%clk 0:01:22]}  exd5 {[%clk 0:02:24]} 20. Bxd5 {[%clk 0:01:21]}  Rac8 {[%clk 0:02:24]} 21. Qd3 {[%clk 0:01:13]}  Nc2 {[%clk 0:02:23]} 22. Rad1 {[%clk 0:01:12]}  Nxe1 {[%clk 0:02:21]} 23. Rxe1 {[%clk 0:01:13]}  Rc1 {[%clk 0:02:10]} 24. Rxc1 {[%clk 0:01:11]}  Qg5+ {[%clk 0:02:10]} 25. Kh1 {[%clk 0:01:10]}  Qxc1+ {[%clk 0:02:11]} 26. Kg2 {[%clk 0:01:10]}  Qxb2 {[%clk 0:02:10]} 27. Bb3 {[%clk 0:01:06]}  Qf6 {[%clk 0:02:09]} 28. Qd7 {[%clk 0:01:06]}  a5 {[%clk 0:02:07]} 29. Qb7 {[%clk 0:01:03]}  Qg6+ {[%clk 0:02:04]} 30. Kf1 {[%clk 0:01:02]}  Qd3+ {[%clk 0:01:59]} 31. Kg2 {[%clk 0:01:02]}  b5 {[%clk 0:01:59]} 32. Qc6 {[%clk 0:00:55]}  a4 {[%clk 0:01:49]} 33. Bc2 {[%clk 0:00:53]}  Qc4 {[%clk 0:01:45]} 34. Qxc4 {[%clk 0:00:46]}  bxc4 {[%clk 0:01:46]} 35. Bxa4 {[%clk 0:00:47]}  Ra8 {[%clk 0:01:46]} 36. Bb5 {[%clk 0:00:45]}  c3 {[%clk 0:01:46]} 0-1

[Event "December 5 Early 2023"]
[Site "https://www.chess.com"]
[Date "2023.12.05"]
[Round "2"]
[White "Bachmann, Axel"]
[Black "NovakRatko"]
[Result "1-0"]
[Board "118"]
[TimeControl "180+1"]
[WhiteFideId "3700488"]
[WhiteElo "2841"]
[BlackElo "2479"]
[WhiteTeam "PAR"]
[WhiteClock "0:00:16"]
[BlackClock "0:00:00"]

1. e4 {[%clk 0:02:05]}  d5 {[%clk 0:02:58]} 2. exd5 {[%clk 0:02:05]}  c6 {[%clk 0:02:58]} 3. dxc6 {[%clk 0:02:04]}  Nxc6 {[%clk 0:02:59]} 4. Bc4 {[%clk 0:02:02]}  e5 {[%clk 0:02:59]} 5. Nc3 {[%clk 0:01:59]}  Bd6 {[%clk 0:02:59]} 6. Nf3 {[%clk 0:01:58]}  Nf6 {[%clk 0:02:59]} 7. d3 {[%clk 0:01:58]}  O-O {[%clk 0:02:59]} 8. h3 {[%clk 0:01:58]}  h6 {[%clk 0:02:59]} 9. O-O {[%clk 0:01:57]}  Bf5 {[%clk 0:02:58]} 10. Re1 {[%clk 0:01:54]}  a6 {[%clk 0:02:57]} 11. a3 {[%clk 0:01:53]}  Qc7 {[%clk 0:02:56]} 12. Be3 {[%clk 0:01:49]}  Rad8 {[%clk 0:02:47]} 13. Nh4 {[%clk 0:01:46]}  Bh7 {[%clk 0:02:43]} 14. Qf3 {[%clk 0:01:44]}  Nd4 {[%clk 0:02:30]} 15. Bxd4 {[%clk 0:01:41]}  exd4 {[%clk 0:02:30]} 16. Ne2 {[%clk 0:01:25]}  b5 {[%clk 0:02:20]} 17. Bb3 {[%clk 0:01:24]}  a5 {[%clk 0:02:18]} 18. a4 {[%clk 0:01:21]}  Bb4 {[%clk 0:02:00]} 19. Red1 {[%clk 0:01:20]}  bxa4 {[%clk 0:01:53]} 20. Rxa4 {[%clk 0:01:21]}  Qe5 {[%clk 0:01:46]} 21. Ng3 {[%clk 0:01:17]}  Nd5 {[%clk 0:01:25]} 22. Raa1 {[%clk 0:01:12]}  Qg5 {[%clk 0:01:09]} 23. Nhf5 {[%clk 0:01:06]}  Bxf5 {[%clk 0:00:49]} 24. Nxf5 {[%clk 0:00:55]}  Nf4 {[%clk 0:00:45]} 25. Ng3 {[%clk 0:00:53]}  h5 {[%clk 0:00:34]} 26. Ne4 {[%clk 0:00:51]}  Qf5 {[%clk 0:00:29]} 27. c3 {[%clk 0:00:43]}  dxc3 {[%clk 0:00:25]} 28. bxc3 {[%clk 0:00:44]}  Be7 {[%clk 0:00:23]} 29. Ng3 {[%clk 0:00:41]}  Qg5 {[%clk 0:00:22]} 30. d4 {[%clk 0:00:38]}  Nxh3+ {[%clk 0:00:20]} 31. gxh3 {[%clk 0:00:34]}  h4 {[%clk 0:00:19]} 32. Re1 {[%clk 0:00:31]}  hxg3 {[%clk 0:00:19]} 33. Qxg3 {[%clk 0:00:28]}  Rc8 {[%clk 0:00:15]} 34. Qxg5 {[%clk 0:00:22]}  Bxg5 {[%clk 0:00:15]} 35. Rxa5 {[%clk 0:00:21]}  Rxc3 {[%clk 0:00:14]} 36. Ba2 {[%clk 0:00:18]}  Rxh3 {[%clk 0:00:14]} 37. Rxg5 {[%clk 0:00:18]}  Ra3 {[%clk 0:00:04]} 38. Bd5 {[%clk 0:00:17]}  g6 {[%clk 0:00:02]} 39. Rxg6+ {[%clk 0:00:17]}  Kh7 {[%clk 0:00:03]} 40. Rg4 {[%clk 0:00:16]}  Rd3 {[%clk 0:00:00]} 41. Kg2 {[%clk 0:00:16]} 1-0

[Event "December 5 Early 2023"]
[Site "https://www.chess.com"]
[Date "2023.12.05"]
[Round "2"]
[White "Dragun, Kamil"]
[Black "Romero Arzuaga, Yudel"]
[Result "1-0"]
[Board "120"]
[TimeControl "180+1"]
[WhiteFideId "1134167"]
[BlackFideId "3521010"]
[WhiteElo "2808"]
[BlackElo "2428"]
[WhiteTeam "POL"]
[BlackTeam "CUB"]
[WhiteClock "0:00:09"]
[BlackClock "0:00:00"]

1. d4 {[%clk 0:02:57]}  d5 {[%clk 0:03:00]} 2. c4 {[%clk 0:02:57]}  e6 {[%clk 0:03:01]} 3. Nc3 {[%clk 0:02:57]}  Nf6 {[%clk 0:03:01]} 4. Nf3 {[%clk 0:02:56]}  Nbd7 {[%clk 0:03:00]} 5. Bf4 {[%clk 0:02:55]}  Be7 {[%clk 0:02:56]} 6. e3 {[%clk 0:02:53]}  O-O {[%clk 0:02:57]} 7. c5 {[%clk 0:02:53]}  c6 {[%clk 0:02:56]} 8. h3 {[%clk 0:02:49]}  Ne4 {[%clk 0:02:53]} 9. Nxe4 {[%clk 0:02:40]}  dxe4 {[%clk 0:02:54]} 10. Nd2 {[%clk 0:02:41]}  f5 {[%clk 0:02:54]} 11. Be2 {[%clk 0:02:27]}  Nf6 {[%clk 0:02:54]} 12. Nc4 {[%clk 0:02:25]}  Nd5 {[%clk 0:02:54]} 13. Bd6 {[%clk 0:02:24]}  b6 {[%clk 0:02:41]} 14. O-O {[%clk 0:02:20]}  Ba6 {[%clk 0:02:39]} 15. Bxe7 {[%clk 0:01:37]}  Qxe7 {[%clk 0:02:40]} 16. Ne5 {[%clk 0:01:37]}  Bxe2 {[%clk 0:02:35]} 17. Qxe2 {[%clk 0:01:38]}  bxc5 {[%clk 0:02:35]} 18. dxc5 {[%clk 0:01:37]}  Qxc5 {[%clk 0:02:23]} 19. Nd7 {[%clk 0:01:34]}  Qd6 {[%clk 0:02:20]} 20. Nxf8 {[%clk 0:01:34]}  Rxf8 {[%clk 0:02:20]} 21. Rac1 {[%clk 0:01:34]}  h6 {[%clk 0:01:36]} 22. Qc4 {[%clk 0:01:32]}  Rf6 {[%clk 0:01:21]} 23. Qxc6 {[%clk 0:01:30]}  Qe5 {[%clk 0:01:21]} 24. Qe8+ {[%clk 0:01:24]}  Kh7 {[%clk 0:01:20]} 25. Rc8 {[%clk 0:01:23]}  f4 {[%clk 0:01:19]} 26. exf4 {[%clk 0:01:08]}  Nxf4 {[%clk 0:01:16]} 27. Qg8+ {[%clk 0:00:57]}  Kg6 {[%clk 0:01:15]} 28. Rc3 {[%clk 0:00:29]}  Ne2+ {[%clk 0:01:12]} 29. Kh1 {[%clk 0:00:29]}  Nxc3 {[%clk 0:01:12]} 30. bxc3 {[%clk 0:00:29]}  e3 {[%clk 0:01:05]} 31. f3 {[%clk 0:00:24]}  Qxc3 {[%clk 0:00:56]} 32. Qe8+ {[%clk 0:00:25]}  Kh7 {[%clk 0:00:55]} 33. Qb5 {[%clk 0:00:25]}  Qd2 {[%clk 0:00:50]} 34. Qb1+ {[%clk 0:00:26]}  Rg6 {[%clk 0:00:49]} 35. Rg1 {[%clk 0:00:24]}  e2 {[%clk 0:00:45]} 36. Qe4 {[%clk 0:00:20]}  h5 {[%clk 0:00:32]} 37. g4 {[%clk 0:00:18]}  hxg4 {[%clk 0:00:29]} 38. hxg4 {[%clk 0:00:18]}  Qh6+ {[%clk 0:00:10]} 39. Kg2 {[%clk 0:00:18]}  Kg8 {[%clk 0:00:10]} 40. Qxe2 {[%clk 0:00:15]}  Rf6 {[%clk 0:00:10]} 41. Re1 {[%clk 0:00:14]}  Qf4 {[%clk 0:00:09]} 42. Qe3 {[%clk 0:00:13]}  Qd6 {[%clk 0:00:09]} 43. a3 {[%clk 0:00:10]}  Rh6 {[%clk 0:00:09]} 44. Rh1 {[%clk 0:00:08]}  Rxh1 {[%clk 0:00:07]} 45. Kxh1 {[%clk 0:00:09]}  Qd1+ {[%clk 0:00:07]} 46. Kg2 {[%clk 0:00:09]}  Qc2+ {[%clk 0:00:08]} 47. Kg3 {[%clk 0:00:09]}  Qc7+ {[%clk 0:00:09]} 48. f4 {[%clk 0:00:09]}  Qc2 {[%clk 0:00:08]} 49. g5 {[%clk 0:00:09]}  Kf7 {[%clk 0:00:08]} 50. Qxa7+ {[%clk 0:00:09]}  Kg6 {[%clk 0:00:08]} 51. Qe3 {[%clk 0:00:09]}  Qd1 {[%clk 0:00:06]} 52. Qxe6+ {[%clk 0:00:09]}  Kh5 {[%clk 0:00:04]} 53. Qh3+ {[%clk 0:00:10]}  Kg6 {[%clk 0:00:04]} 54. Qe6+ {[%clk 0:00:09]}  Kh5 {[%clk 0:00:00]} 55. Qe3 {[%clk 0:00:09]} 1-0

[Event "December 5 Early 2023"]
[Site "https://www.chess.com"]
[Date "2023.12.05"]
[Round "2"]
[White "Jakubowski, Krzysztof"]
[Black "Zia, Tahsin Tajwar"]
[Result "1-0"]
[Board "126"]
[TimeControl "180+1"]
[WhiteFideId "1112848"]
[BlackFideId "10211888"]
[WhiteElo "2645"]
[BlackElo "2353"]
[WhiteTeam "POL"]
[BlackTeam "BAN"]
[WhiteClock "0:00:29"]
[BlackClock "0:01:02"]

1. e4 {[%clk 0:02:55]}  c6 {[%clk 0:02:44]} 2. Nf3 {[%clk 0:02:51]}  d5 {[%clk 0:02:44]} 3. d3 {[%clk 0:02:51]}  Qc7 {[%clk 0:02:39]} 4. exd5 {[%clk 0:02:50]}  cxd5 {[%clk 0:02:39]} 5. c4 {[%clk 0:02:50]}  Nf6 {[%clk 0:02:35]} 6. Nc3 {[%clk 0:02:50]}  dxc4 {[%clk 0:02:14]} 7. g3 {[%clk 0:02:41]}  Bd7 {[%clk 0:02:04]} 8. Bg2 {[%clk 0:02:25]}  Bc6 {[%clk 0:02:02]} 9. Bf4 {[%clk 0:02:20]}  Qb6 {[%clk 0:01:59]} 10. O-O {[%clk 0:02:18]}  Nbd7 {[%clk 0:01:59]} 11. dxc4 {[%clk 0:02:12]}  e6 {[%clk 0:01:53]} 12. a4 {[%clk 0:01:50]}  a6 {[%clk 0:01:42]} 13. Qe2 {[%clk 0:01:29]}  Bb4 {[%clk 0:01:39]} 14. Rfd1 {[%clk 0:00:43]}  O-O {[%clk 0:01:30]} 15. Ne5 {[%clk 0:00:39]}  Nxe5 {[%clk 0:01:26]} 16. Bxe5 {[%clk 0:00:39]}  Bxg2 {[%clk 0:01:21]} 17. Kxg2 {[%clk 0:00:38]}  Nd7 {[%clk 0:01:14]} 18. Rxd7 {[%clk 0:00:30]}  Qc6+ {[%clk 0:01:14]} 19. Ne4 {[%clk 0:00:29]}  Qxd7 {[%clk 0:01:02]} 20. Nf6+ {[%clk 0:00:29]} 1-0

[Event "December 5 Early 2023"]
[Site "https://www.chess.com"]
[Date "2023.12.05"]
[Round "2"]
[White "Feuerstack, Aljoscha"]
[Black "Tarasova, Viktoriya"]
[Result "1-0"]
[Board "127"]
[TimeControl "180+1"]
[WhiteFideId "4681932"]
[BlackFideId "4175840"]
[WhiteElo "2643"]
[BlackElo "2358"]
[WhiteTeam "GER"]
[BlackTeam "RUS"]
[WhiteClock "0:01:24"]
[BlackClock "0:00:12"]

1. e4 {[%clk 0:03:00]}  e5 {[%clk 0:02:59]} 2. Bc4 {[%clk 0:03:00]}  Nf6 {[%clk 0:02:58]} 3. d3 {[%clk 0:03:00]}  c6 {[%clk 0:02:57]} 4. Nf3 {[%clk 0:03:00]}  d5 {[%clk 0:02:57]} 5. Bb3 {[%clk 0:03:00]}  a5 {[%clk 0:02:55]} 6. a3 {[%clk 0:03:00]}  a4 {[%clk 0:02:55]} 7. Ba2 {[%clk 0:03:00]}  Bd6 {[%clk 0:02:56]} 8. exd5 {[%clk 0:02:59]}  cxd5 {[%clk 0:02:56]} 9. Nc3 {[%clk 0:03:00]}  Be6 {[%clk 0:02:32]} 10. Bg5 {[%clk 0:03:00]}  Bc7 {[%clk 0:02:32]} 11. O-O {[%clk 0:02:54]}  h6 {[%clk 0:02:22]} 12. Bh4 {[%clk 0:02:09]}  g5 {[%clk 0:01:18]} 13. Bg3 {[%clk 0:02:09]}  Nbd7 {[%clk 0:00:37]} 14. Re1 {[%clk 0:02:05]}  Bg4 {[%clk 0:00:36]} 15. Nxd5 {[%clk 0:02:00]}  Nxd5 {[%clk 0:00:33]} 16. Bxd5 {[%clk 0:02:01]}  O-O {[%clk 0:00:32]} 17. Qd2 {[%clk 0:01:31]}  Qf6 {[%clk 0:00:18]} 18. Qb4 {[%clk 0:01:25]}  Ba5 {[%clk 0:00:16]} 19. Qxg4 {[%clk 0:01:23]}  Bxe1 {[%clk 0:00:16]} 20. Rxe1 {[%clk 0:01:24]}  Rfe8 {[%clk 0:00:12]} 21. Qxd7 {[%clk 0:01:24]} 1-0

[Event "December 5 Early 2023"]
[Site "https://www.chess.com"]
[Date "2023.12.05"]
[Round "2"]
[White "Minina, Veronika"]
[Black "Ambartsumova, Karina"]
[Result "0-1"]
[Board "128"]
[TimeControl "180+1"]
[WhiteFideId "4174780"]
[BlackFideId "4166299"]
[WhiteElo "2263"]
[BlackElo "2621"]
[WhiteTeam "RUS"]
[BlackTeam "RUS"]
[WhiteClock "0:00:00"]
[BlackClock "0:00:07"]

1. Nf3 {[%clk 0:02:57]}  Nf6 {[%clk 0:03:00]} 2. g3 {[%clk 0:02:57]}  g6 {[%clk 0:03:00]} 3. Bg2 {[%clk 0:02:58]}  Bg7 {[%clk 0:03:00]} 4. c4 {[%clk 0:02:58]}  O-O {[%clk 0:03:00]} 5. O-O {[%clk 0:02:59]}  d6 {[%clk 0:03:01]} 6. Nc3 {[%clk 0:02:58]}  e5 {[%clk 0:03:01]} 7. d3 {[%clk 0:02:58]}  Nc6 {[%clk 0:02:57]} 8. Rb1 {[%clk 0:02:57]}  a5 {[%clk 0:02:57]} 9. a3 {[%clk 0:02:56]}  h6 {[%clk 0:02:49]} 10. b4 {[%clk 0:02:56]}  axb4 {[%clk 0:02:50]} 11. axb4 {[%clk 0:02:56]}  Be6 {[%clk 0:02:45]} 12. b5 {[%clk 0:02:28]}  Ne7 {[%clk 0:02:33]} 13. Bd2 {[%clk 0:01:54]}  Qd7 {[%clk 0:02:32]} 14. c5 {[%clk 0:01:53]}  Ned5 {[%clk 0:02:12]} 15. b6 {[%clk 0:01:42]}  Nxc3 {[%clk 0:01:53]} 16. Bxc3 {[%clk 0:01:42]}  Nd5 {[%clk 0:01:54]} 17. Bb2 {[%clk 0:01:29]}  cxb6 {[%clk 0:01:54]} 18. cxd6 {[%clk 0:01:28]}  Qxd6 {[%clk 0:01:54]} 19. Nd2 {[%clk 0:01:22]}  b5 {[%clk 0:01:48]} 20. Ba1 {[%clk 0:01:17]}  Bd7 {[%clk 0:01:16]} 21. Ne4 {[%clk 0:01:16]}  Qe7 {[%clk 0:01:15]} 22. Qd2 {[%clk 0:01:06]}  Bc6 {[%clk 0:01:13]} 23. Rfc1 {[%clk 0:01:00]}  Kh7 {[%clk 0:01:04]} 24. Nc5 {[%clk 0:00:56]}  Rfd8 {[%clk 0:01:01]} 25. h4 {[%clk 0:00:51]}  h5 {[%clk 0:00:59]} 26. Nb3 {[%clk 0:00:39]}  b4 {[%clk 0:00:55]} 27. e3 {[%clk 0:00:28]}  Rd6 {[%clk 0:00:42]} 28. Qe2 {[%clk 0:00:28]}  Rad8 {[%clk 0:00:40]} 29. d4 {[%clk 0:00:29]}  Nc3 {[%clk 0:00:30]} 30. Bxc3 {[%clk 0:00:27]}  bxc3 {[%clk 0:00:29]} 31. Bxc6 {[%clk 0:00:21]}  bxc6 {[%clk 0:00:28]} 32. Rxc3 {[%clk 0:00:11]}  exd4 {[%clk 0:00:28]} 33. Rd3 {[%clk 0:00:11]}  dxe3 {[%clk 0:00:17]} 34. Rxe3 {[%clk 0:00:12]}  Qd7 {[%clk 0:00:18]} 35. Re1 {[%clk 0:00:11]}  Rd1 {[%clk 0:00:17]} 36. Kh2 {[%clk 0:00:10]}  Rxe1 {[%clk 0:00:16]} 37. Qxe1 {[%clk 0:00:11]}  Qd5 {[%clk 0:00:16]} 38. Qc1 {[%clk 0:00:06]}  Bh6 {[%clk 0:00:15]} 39. f4 {[%clk 0:00:02]}  Bg7 {[%clk 0:00:14]} 40. Nc5 {[%clk 0:00:02]}  Rb8 {[%clk 0:00:13]} 41. Ne4 {[%clk 0:00:00]}  f6 {[%clk 0:00:07]} 0-1